fUSD/lending_fUSD_20260227
["ID","MTS","AMOUNT","RATE_DAILY","PERIOD"]
[406800778,1772203852271,-500.0,0.00024674,2]
[406800779,1772203852285,-500.0,0.00024674,2]
[406800780,1772203852300,-500.0,0.00024674,2]
[406800781,1772203852314,-500.0,0.00024674,2]
[406800782,1772203852330,-500.0,0.00024674,2]
[406800783,1772203852344,-500.0,0.00024674,2]
[406800784,1772203852358,-500.0,0.00024674,2]
[406800785,1772203852372,-500.0,0.00024674,2]
[406800786,1772203852387,-500.0,0.00024674,2]
[406800787,1772203852403,-500.0,0.00024674,2]
[406800788,1772203852418,-250.0,0.00024674,2]
[406800789,1772203852433,-500.0,0.00024674,2]
[406800790,1772203852448,-250.0,0.00024674,2]
[406800791,1772203852464,-500.0,0.00024674,2]
[406800792,1772203852479,-250.0,0.00024674,2]
[406800793,1772203852493,-500.0,0.00024674,2]
[406800794,1772203852507,-250.0,0.00024674,2]
[406800795,1772203852522,-174.61919141,0.00024674,2]
[406800796,1772203852537,-500.0,0.00024674,2]
[406800797,1772203852551,-250.0,0.00024674,2]
[406800798,1772203852566,-500.0,0.00024674,2]
[406800799,1772203852582,-250.0,0.00024674,2]
[406800800,1772203852595,-500.0,0.00024674,2]
[406800801,1772203852609,-250.0,0.00024674,2]
[406800802,1772203852623,-500.0,0.00024674,2]
[406800803,1772203852638,-250.0,0.00024674,2]
[406800804,1772203852652,-500.0,0.00024674,2]
[406800805,1772203852666,-250.0,0.00024674,2]
[406800806,1772203852681,-500.0,0.00024674,2]
[406800807,1772203852695,-250.0,0.00024674,2]
[406800808,1772203852709,-500.0,0.00024674,2]
[406800809,1772203852723,-500.0,0.00024674,2]
[406800810,1772203852737,-250.0,0.00024674,2]
[406800811,1772203852752,-500.0,0.00024674,2]
[406800812,1772203852766,-500.0,0.00024674,2]
[406800813,1772203852780,-250.0,0.00024674,2]
[406800814,1772203852796,-500.0,0.00024674,2]
[406800815,1772203852812,-500.0,0.00024674,2]
[406800816,1772203852827,-250.0,0.00024674,2]
[406800817,1772203852845,-500.0,0.00024674,2]
[406800818,1772203852856,-500.0,0.00024674,2]
[406800819,1772203852866,-500.0,0.00024674,2]
[406800820,1772203852877,-500.0,0.00024674,2]
[406800821,1772203853045,-500.0,0.00024674,2]
[406800822,1772203853072,-670.58624095,0.00024674,2]
[406800823,1772203853082,-500.0,0.00024674,2]
[406800824,1772203853092,-500.0,0.00024674,2]
[406800825,1772203853100,-500.0,0.00024674,2]
[406800826,1772203853110,-500.0,0.00024674,2]
[406800827,1772203853119,-500.0,0.00024674,2]
[406800828,1772203853128,-500.0,0.00024674,2]
[406800829,1772203853137,-500.0,0.00024674,2]
[406800830,1772203853146,-500.0,0.00024674,2]
[406800831,1772203853156,-500.0,0.00024674,2]
[406800832,1772203853166,-500.0,0.00024674,2]
[406800833,1772203853175,-500.0,0.00024674,2]
[406800834,1772203853184,-500.0,0.00024674,2]
[406800835,1772203853194,-644.79446246,0.00024674,2]
[406800836,1772203853203,-500.0,0.00024674,2]
[406800837,1772203853213,-500.0,0.00024674,2]
[406800838,1772203853223,-500.0,0.00024674,2]
[406800839,1772203853232,-500.0,0.00024674,2]
[406800840,1772203853241,-500.0,0.00024674,2]
[406800841,1772203853250,-500.0,0.00024674,2]
[406800842,1772203853259,-480.10305259,0.00024674,2]
[406800843,1772203853269,-250.0,0.00024674,2]
[406800844,1772203853279,-250.0,0.00024674,2]
[406800845,1772203853289,-269.917619,0.00024674,2]
[406800846,1772203853298,-250.0,0.00024674,2]
[406800847,1772203853308,-250.0,0.00024674,2]
[406800848,1772203853317,-250.0,0.00024674,2]
[406800849,1772203853326,-250.0,0.00024674,2]
[406800850,1772203853335,-250.0,0.00024674,2]
[406800851,1772203853344,-250.0,0.00024674,2]
[406800852,1772203853353,-250.0,0.00024674,2]
[406800853,1772203853363,-250.0,0.00024674,2]
[406800854,1772203853372,-250.0,0.00024674,2]
[406800855,1772203853381,-250.0,0.00024674,2]
[406800856,1772203853390,-250.0,0.00024674,2]
[406800857,1772203853399,-200.0,0.00024674,2]
[406800858,1772203853422,-200.0,0.00024674,2]
[406800859,1772203853431,-203.16821777,0.00024674,2]
[406800860,1772203853439,-500.0,0.00024674,2]
[406800861,1772203853448,-500.0,0.00024674,2]
[406800862,1772203853458,-500.0,0.00024674,2]
[406800863,1772203853468,-500.0,0.00024674,2]
[406800864,1772203853478,-500.0,0.00024674,2]
[406800865,1772203853489,-500.0,0.00024674,2]
[406800866,1772203853499,-500.0,0.00024674,2]
[406800867,1772203853508,-500.0,0.00024674,2]
[406800868,1772203853516,-500.0,0.00024674,2]
[406800869,1772203853525,-500.0,0.00024674,2]
[406800870,1772203853534,-500.0,0.00024674,2]
[406800871,1772203853543,-500.0,0.00024674,2]
[406800872,1772203853551,-500.0,0.00024674,2]
[406800873,1772203853560,-151.0,0.00024729,2]
[406800874,1772203853569,-668.65185757,0.00024729,2]
[406800875,1772203853578,-151.0,0.00024784,2]
[406800876,1772203853587,-693.3919763,0.00024784,2]
[406800877,1772203853596,-151.0,0.00024839,2]
[406800878,1772203853605,-719.04747942,0.00024839,2]
[406800879,1772203853614,-151.0,0.00024894,2]
[406800880,1772203853623,-745.65223616,0.00024894,2]
[406800881,1772203853632,-151.0,0.00024949,2]
[406800882,1772203853641,-773.2413689,0.00024949,2]
[406800883,1772203853651,-151.0,0.00025004,2]
[406800884,1772203853661,-801.85129955,0.00025004,2]
[406800885,1772203853671,-151.0,0.00025059,2]
[406800886,1772203853682,-831.51979763,0.00025059,2]
[406800887,1772203853692,-151.0,0.00025114,2]
[406800888,1772203853703,-862.28603014,0.00025114,2]
[406800889,1772203853715,-894.19061326,0.00025169,2]
[406800890,1772203853725,-4000.0,0.00025202,2]
[406800891,1772203853734,-267.46074303,0.00025222,2]
[406800892,1772203853744,-771.01748645,0.00025222,2]
[406800893,1772203853753,-181.08010149,0.00025222,2]
[406800894,1772203853762,-301.00069851,0.00025222,2]
[406800895,1772203853772,-927.27566595,0.00025224,2]
[406800896,1772203853782,-500.0,0.0002526,2]
[406800897,1772203853793,-961.58486559,0.00025279,2]
[406800898,1772203853804,-997.16350561,0.00025334,2]
[406800899,1772203853813,-277.35679052,0.0002577,2]
[406800900,1772203853823,-799.54513345,0.0002577,2]
[406800901,1772203853834,-187.78006525,0.0002577,2]
[406800902,1772203853844,-150.0,0.0002589,2]
[406800903,1772203853854,-250.27,0.00026016,30]
[406800904,1772203853863,-318.74,0.00026244,30]
[406800905,1772203853873,-8782.68815971,0.0002628,2]
[406800906,1772203853883,-287.61899177,0.00026318,2]
[406800907,1772203853892,-829.12830338,0.00026318,2]
[406800908,1772203853902,-194.72792766,0.00026318,2]
[406800909,1772203853912,-500.0,0.00026604,2]
[406800910,1772203853921,-509.0,0.00026728,12]
[406800911,1772203853931,-628.35976617,0.0002673,15]
[406800912,1772203853940,-298.26089446,0.00026866,2]
[406800913,1772203853949,-859.80605061,0.00026866,2]
[406800914,1772203853959,-201.93286099,0.00026866,2]
[406800915,1772203853969,-2000.0,0.00027,2]
[406800916,1772203853978,-500.0,0.00027096,2]
[406800917,1772203853988,-150.0,0.00027185,2]
[406800918,1772203853997,-180.5,0.00027198,2]
[406800919,1772203854006,-1153.73492117,0.00027372,2]
[406800920,1772203854016,-14398.02636701,0.00027372,2]
[406800921,1772203854025,-307.57516928,0.00027372,2]
[406800922,1772203854034,-1000.0,0.00027397,20]
[406800923,1772203854043,-300.0,0.00027397,2]
[406800924,1772203854052,-260.28746,0.00027397,2]
[406800925,1772203854061,-260.28746,0.00027397,2]
[406800926,1772203854071,-260.28746,0.00027397,2]
[406800927,1772203854081,-260.28746,0.00027397,2]
[406800928,1772203854090,-260.28746,0.00027397,2]
[406800929,1772203854099,-260.28746,0.00027397,2]
[406800930,1772203854109,-260.28746,0.00027397,2]
[406800931,1772203854118,-260.28746,0.00027397,2]
[406800932,1772203854129,-260.28746,0.00027397,2]
[406800933,1772203854138,-599.60298507,0.00027413,2]
[406800934,1772203854147,-695.39793187,0.00027413,2]
[406800935,1772203854156,-309.29654756,0.00027414,2]
[406800936,1772203854165,-891.61887448,0.00027414,2]
[406800937,1772203854174,-209.40437684,0.00027414,2]
[406800938,1772203854183,-233.59,0.00027453,2]
[406800939,1772203854192,-221.273,0.00027453,2]
[406800940,1772203854201,-250.0,0.00027453,2]
[406800941,1772203854210,-160.705,0.00027453,2]
[406800942,1772203854220,-250.0,0.00027453,2]
[406800943,1772203854229,-192.473,0.00027453,2]
[406800944,1772203854238,-165.15,0.00027453,2]
[406800945,1772203854247,-213.725,0.00027453,2]
[406800946,1772203854256,-250.0,0.00027453,2]
[406800947,1772203854265,-235.545,0.00027453,2]
[406800948,1772203854274,-176.0,0.00027453,2]
[406800949,1772203854283,-150.0,0.00027616,2]
[406800950,1772203854292,-668.0,0.00027759,10]
[406800951,1772203854301,-1071.0,0.00027759,10]
[406800952,1772203854310,-320.74051982,0.00027962,2]
[406800953,1772203854319,-791.73696658,0.00027962,2]
[406800954,1772203854328,-217.15233878,0.00027962,2]
[406800955,1772203854337,-1041.0,0.00028145,2]
[406800956,1772203854346,-618.0,0.00028145,2]
[406800957,1772203854356,-1340.0,0.00028145,2]
[406800958,1772203854366,-3498.0,0.00028145,2]
[406800959,1772203854375,-150.0,0.00028145,2]
[406800960,1772203854384,-1277.0,0.00028145,2]
[406800961,1772203854393,-1211.0,0.00028145,2]
[406800962,1772203854406,-921.0,0.00028145,2]
[406800963,1772203854416,-5983.0,0.00028145,2]
[406800964,1772203854426,-2456.0,0.00028145,2]
[406800965,1772203854435,-413.0,0.00028145,2]
[406800966,1772203854445,-500.0,0.00028192,2]
[406800967,1772203854455,-318.74,0.00028407,30]
[406800968,1772203854464,-165.5,0.00028493,2]
[406800969,1772203854474,-332.60791905,0.0002851,2]
[406800970,1772203854486,-225.18697532,0.0002851,2]
[406800971,1772203854495,-150.0,0.00028544,2]
[406800972,1772203854504,-2000.0,0.000287,2]
[406800973,1772203854513,-1261.91465291,0.00028818,19]
[406800974,1772203854522,-2000.0,0.00029,2]
[406800975,1772203854532,-344.91441206,0.00029058,2]
[406800976,1772203854541,-233.51889341,0.00029058,2]
[406800977,1772203854550,-500.0,0.00029315,2]
[406800978,1772203854559,-500.0,0.00029412,2]
[406800979,1772203854569,-357.6762453,0.00029606,2]
[406800980,1772203854578,-242.15909246,0.00029606,2]
[406800981,1772203854588,-509.0,0.00029688,15]
[406800982,1772203854597,-183.50003222,0.00029837,2]
[406800983,1772203854606,-180.5,0.00029888,2]
[406800984,1772203854615,-150.0,0.00029971,2]
[406800985,1772203854624,-18531.48750538,0.0003,2]
[406800986,1772203854634,-250.27,0.00030032,60]
[406800987,1772203854643,-621.78829552,0.00030152,2]
[406800988,1772203854653,-721.12765535,0.00030152,2]
[406800989,1772203854662,-370.91026638,0.00030154,2]
[406800990,1772203854671,-251.11897888,0.00030154,2]
[406800991,1772203854680,-500.0,0.00030329,120]
[406800992,1772203854689,-500.0,0.00030329,120]
[406800993,1772203854699,-2000.0,0.000304,2]
[406800994,1772203854708,-150.0,0.00030453,2]
[406800995,1772203854717,-150.0,0.00030453,2]
[406800996,1772203854726,-150.0,0.00030453,2]
[406800997,1772203854735,-150.0,0.00030453,2]
[406800998,1772203854744,-150.0,0.00030453,2]
[406800999,1772203854753,-150.0,0.00030453,2]
[406801000,1772203854762,-150.0,0.00030453,2]
[406801001,1772203854771,-150.0,0.00030453,2]
[406801002,1772203854780,-318.74,0.0003057,30]
[406801003,1772203854790,-384.63394623,0.00030702,2]
[406801004,1772203854799,-260.4103811,0.00030702,2]
[406801005,1772203854808,-8782.68815971,0.0003082,2]
[406801006,1772203854818,-1615.16915287,0.00030907,22]
[406801007,1772203854827,-1041.0,0.00031145,2]
[406801008,1772203854836,-618.0,0.00031145,2]
[406801009,1772203854846,-1340.0,0.00031145,2]
[406801010,1772203854856,-3497.0,0.00031145,2]
[406801011,1772203854865,-150.0,0.00031145,2]
[406801012,1772203854875,-1277.0,0.00031145,2]
[406801013,1772203854883,-1211.0,0.00031145,2]
[406801014,1772203854893,-921.0,0.00031145,2]
[406801015,1772203854902,-5983.0,0.00031145,2]
[406801016,1772203854911,-2456.0,0.00031145,2]
[406801017,1772203854921,-413.0,0.00031145,2]
[406801018,1772203854931,-398.86540225,0.0003125,2]
[406801019,1772203854941,-270.0455652,0.0003125,2]
[406801020,1772203854950,-150.0,0.0003147,2]
[406801021,1772203854959,-1716.21530134,0.00031603,23]
[406801022,1772203854969,-280.03725112,0.00031798,2]
[406801023,1772203854978,-198774.0,0.0003185,20]
[406801024,1772203854987,-151.0,0.0003185,7]
[406801025,1772203854997,-151.0,0.0003185,7]
[406801026,1772203855006,-151.0,0.0003185,7]
[406801027,1772203855016,-242.556469,0.0003185,7]
[406801028,1772203855025,-282.99727,0.0003185,7]
[406801029,1772203855150,-282.99727,0.0003185,7]
[406801030,1772203855163,-282.99727,0.0003185,7]
[406801031,1772203855172,-282.99727,0.0003185,7]
[406801032,1772203855182,-151.0,0.0003185,7]
[406801033,1772203855191,-151.0,0.0003185,7]
[406801034,1772203855200,-151.0,0.0003185,7]
[406801035,1772203855210,-188.563321,0.0003185,7]
[406801036,1772203855219,-151.0,0.0003185,7]
[406801037,1772203855228,-292.18988,0.0003185,7]
[406801038,1772203855237,-346.311245,0.0003185,7]
[406801039,1772203855247,-346.311245,0.0003185,7]
[406801040,1772203855256,-346.311245,0.0003185,7]
[406801041,1772203855266,-346.311238,0.0003185,7]
[406801042,1772203855275,-493.961025,0.0003185,7]
[406801043,1772203855284,-493.961025,0.0003185,7]
[406801044,1772203855294,-493.961025,0.0003185,7]
[406801045,1772203855303,-493.961019,0.0003185,7]
[406801046,1772203855312,-151.0,0.0003185,7]
[406801047,1772203855322,-260.28746,0.0003185,7]
[406801048,1772203855331,-260.28746,0.0003185,7]
[406801049,1772203855340,-290.89011574,0.0003188,2]
[406801050,1772203855349,-2000.0,0.000321,2]
[406801051,1772203855359,-500.0,0.0003222,2]
[406801052,1772203855369,-290.39862941,0.00032346,2]
[406801053,1772203855378,-180.5,0.00032578,2]
[406801054,1772203855387,-509.0,0.00032647,17]
[406801055,1772203855396,-2000.0,0.000327,2]
[406801056,1772203855408,-318.74,0.00032732,30]
[406801057,1772203855421,-894.1926491,0.00032877,2]
[406801058,1772203855431,-151.0,0.00032877,31]
[406801059,1772203855440,-280.271723,0.00032877,31]
[406801060,1772203855451,-644.79446246,0.00032891,2]
[406801061,1772203855460,-747.8093786,0.00032891,2]
[406801062,1772203855470,-301.1433787,0.00032894,2]
[406801063,1772203855481,-431.68,0.000329,30]
[406801064,1772203855491,-2382.62,0.000329,14]
[406801065,1772203855500,-4068.84,0.000329,14]
[406801066,1772203855510,-5639.98,0.000329,2]
[406801067,1772203855520,-198774.0,0.000329,20]
[406801068,1772203855529,-150.0,0.00033043,2]
[406801069,1772203855539,-724.71,0.000331,14]
[406801070,1772203855549,-150.0,0.00033453,2]
[406801071,1772203855558,-150.0,0.00033453,2]
[406801072,1772203855568,-150.0,0.00033453,2]
[406801073,1772203855578,-150.0,0.00033453,2]
[406801074,1772203855587,-150.0,0.00033453,2]
[406801075,1772203855596,-150.0,0.00033453,2]
[406801076,1772203855606,-150.0,0.00033453,2]
[406801077,1772203855615,-822.711,0.00033614,36]
[406801078,1772203855624,-1040.2,0.00033625,2]
[406801079,1772203855634,-2064.0,0.000338,7]
[406801080,1772203855644,-200.0,0.000339,12]
[406801081,1772203855655,-198774.0,0.0003395,20]
[406801082,1772203855664,-5557.48,0.00033973,2]
[406801083,1772203855676,-160.0,0.00034,7]
[406801084,1772203855685,-250.27,0.00034048,60]
[406801085,1772203855695,-150.0,0.000341,30]
[406801086,1772203855704,-1041.0,0.00034145,2]
[406801087,1772203855714,-618.0,0.00034145,2]
[406801088,1772203855724,-1340.0,0.00034145,2]
[406801089,1772203855734,-150.0,0.00034145,2]
[406801090,1772203855743,-1277.0,0.00034145,2]
[406801091,1772203855752,-1211.0,0.00034145,2]
[406801092,1772203855761,-921.0,0.00034145,2]
[406801093,1772203855771,-5983.0,0.00034145,2]
[406801094,1772203855782,-2456.0,0.00034145,2]
[406801095,1772203855791,-1040.2,0.00034286,2]
[406801096,1772203855801,-308.0,0.00034452,120]
[406801097,1772203855810,-1295.05,0.000345,30]
[406801098,1772203855819,-150.0,0.00034696,2]
[406801099,1772203855829,-209.99304853,0.00034735,120]
[406801100,1772203855838,-222.28872477,0.00034735,120]
[406801101,1772203855848,-154.49167072,0.00034735,120]
[406801102,1772203855858,-1500.0,0.00034795,2]
[406801103,1772203855867,-318.74,0.00034895,30]
[406801104,1772203855876,-350.0,0.00034906,5]
[406801105,1772203855885,-1040.2,0.00034948,5]
[406801106,1772203855895,-1005.47954759,0.00035,7]
[406801107,1772203855905,-151.79091639,0.00035,30]
[406801108,1772203855914,-198774.0,0.00035,20]
[406801109,1772203855925,-151.0,0.00035,31]
[406801110,1772203855935,-151.0,0.00035,31]
[406801111,1772203855944,-151.0,0.00035,31]
[406801112,1772203855954,-282.99727,0.00035,31]
[406801113,1772203855963,-282.99727,0.00035,31]
[406801114,1772203855973,-282.99727,0.00035,31]
[406801115,1772203855983,-282.99727,0.00035,31]
[406801116,1772203855992,-151.0,0.00035,31]
[406801117,1772203856001,-174.00015664,0.00035,7]
[406801118,1772203856011,-151.0,0.00035,31]
[406801119,1772203856020,-151.0,0.00035,31]
[406801120,1772203856029,-500.0,0.00035028,2]
[406801121,1772203856038,-507.51471813,0.0003505,10]
[406801122,1772203856047,-350.0,0.00035114,2]
[406801123,1772203856057,-180.5,0.00035267,5]
[406801124,1772203856067,-350.0,0.00035312,6]
[406801125,1772203856077,-1073.73129196,0.00035329,20]
[406801126,1772203856087,-1055.77510083,0.00035329,20]
[406801127,1772203856097,-1088.67237495,0.00035329,20]
[406801128,1772203856106,-1021.98633377,0.00035329,20]
[406801129,1772203856116,-1142.67486346,0.00035329,20]
[406801130,1772203856125,-1067.40399225,0.00035329,20]
[406801131,1772203856135,-1127.2683083,0.00035329,20]
[406801132,1772203856145,-1095.80972137,0.00035329,20]
[406801133,1772203856154,-1854.10425972,0.00035329,20]
[406801134,1772203856163,-8782.68815971,0.0003536,2]
[406801135,1772203856173,-176.71,0.0003545,30]
[406801136,1772203856182,-160.10219675,0.00035566,2]
[406801137,1772203856192,-450.07220255,0.00035566,2]
[406801138,1772203856201,-350.0,0.00035566,2]
[406801139,1772203856210,-509.0,0.00035607,20]
[406801140,1772203856220,-1040.2,0.00035609,5]
[406801141,1772203856229,-544.21519612,0.00035616,5]
[406801142,1772203856239,-151.0,0.00035616,31]
[406801143,1772203856248,-219.601057,0.00035616,31]
[406801144,1772203856258,-668.65185757,0.0003563,2]
[406801145,1772203856267,-775.47832561,0.0003563,2]
[406801146,1772203856276,-2000.0,0.0003571,69]
[406801147,1772203856286,-2000.0,0.0003571,69]
[406801148,1772203856295,-2000.0,0.0003571,69]
[406801149,1772203856304,-2000.0,0.0003571,69]
[406801150,1772203856313,-2000.0,0.0003571,69]
[406801151,1772203856322,-1511.73357855,0.0003588,120]
[406801152,1772203856332,-2382.62,0.000359,14]
[406801153,1772203856342,-4068.84,0.000359,14]
[406801154,1772203856351,-5639.98,0.000359,2]
[406801155,1772203856361,-350.0,0.00035956,4]
[406801156,1772203856370,-683.08360743,0.00036,2]
[406801157,1772203856379,-500.0,0.00036048,120]
[406801158,1772203856388,-500.0,0.00036048,120]
[406801159,1772203856398,-198774.0,0.0003605,20]
[406801160,1772203856411,-1000.0,0.0003605,2]
[406801161,1772203856420,-443.46717804,0.0003605,2]
[406801162,1772203856429,-2000.0,0.0003605,73]
[406801163,1772203856439,-400.0,0.0003607,2]
[406801164,1772203856449,-1000.0,0.0003608,2]
[406801165,1772203856458,-1000.0,0.0003608,2]
[406801166,1772203856467,-1000.0,0.0003608,2]
[406801167,1772203856477,-1000.0,0.0003608,2]
[406801168,1772203856486,-1000.0,0.0003608,2]
[406801169,1772203856495,-455.69291,0.00036088,30]
[406801170,1772203856505,-1000.0,0.00036096,2]
[406801171,1772203856514,-1000.0,0.00036096,2]
[406801172,1772203856523,-1000.0,0.00036096,2]
[406801173,1772203856532,-1000.0,0.00036096,2]
[406801174,1772203856542,-1000.0,0.00036096,2]
[406801175,1772203856551,-5000.0,0.00036122,10]
[406801176,1772203856561,-25000.0,0.00036156,10]
[406801177,1772203856571,-308.0,0.00036175,120]
[406801178,1772203856580,-2500.0,0.00036177,10]
[406801179,1772203856590,-724.71,0.000362,14]
[406801180,1772203856599,-1079.21,0.000362,30]
[406801181,1772203856609,-2500.0,0.00036224,10]
[406801182,1772203856618,-2500.0,0.00036243,10]
[406801183,1772203856628,-171.0,0.00036266,120]
[406801184,1772203856638,-171.0,0.0003627,120]
[406801185,1772203856648,-1040.2,0.00036271,5]
[406801186,1772203856657,-173.0,0.00036284,120]
[406801187,1772203856667,-455.69291,0.00036288,30]
[406801188,1772203856676,-648.48489396,0.00036309,30]
[406801189,1772203856685,-168.0,0.00036393,2]
[406801190,1772203856694,-2000.0,0.000364,2]
[406801191,1772203856704,-150.0,0.0003643,2]
[406801192,1772203856713,-350.0,0.00036441,3]
[406801193,1772203856723,-500.0,0.00036452,120]
[406801194,1772203856732,-500.0,0.00036452,120]
[406801195,1772203856741,-5000.0,0.00036456,10]
[406801196,1772203856750,-350.0,0.00036479,4]
[406801197,1772203856760,-455.69291,0.00036488,30]
[406801198,1772203856769,-10732.46453612,0.000365,120]
[406801199,1772203856779,-16386.76,0.00036515,10]
[406801200,1772203856788,-5000.0,0.00036519,10]
[406801201,1772203856798,-350.0,0.00036615,6]
[406801202,1772203856807,-2500.0,0.00036676,10]
[406801203,1772203856816,-455.69291,0.00036688,30]
[406801204,1772203856826,-152.0,0.00036769,3]
[406801205,1772203856835,-1618.53197853,0.000368,2]
[406801206,1772203856844,-3577.25,0.00036867,10]
[406801207,1772203856853,-455.69291,0.00036888,30]
[406801208,1772203856863,-1518.9763,0.00036888,7]
[406801209,1772203856872,-168.0,0.00036889,2]
[406801210,1772203856881,-1797.7794648,0.000369,120]
[406801211,1772203856890,-14198.17502926,0.0003691,2]
[406801212,1772203856899,-1040.2,0.00036932,7]
[406801213,1772203856909,-597.0,0.00036986,30]
[406801214,1772203856919,-160.0,0.00037,30]
[406801215,1772203856929,-174.00015664,0.00037,30]
[406801216,1772203856938,-174.00015664,0.00037,10]
[406801217,1772203856948,-160.0,0.00037,30]
[406801218,1772203856958,-5639.98,0.00037,2]
[406801219,1772203856967,-365.0,0.00037,2]
[406801220,1772203856976,-363.94734729,0.00037,3]
[406801221,1772203856986,-166.50652523,0.00037,2]
[406801222,1772203856995,-160.0,0.00037,120]
[406801223,1772203857004,-43083.89877079,0.00037,120]
[406801224,1772203857014,-500.0,0.00037014,2]
[406801225,1772203857023,-350.0,0.00037046,6]
[406801226,1772203857033,-318.74,0.00037058,30]
[406801227,1772203857042,-455.69291,0.00037088,30]
[406801228,1772203857051,-500.0,0.00037099,120]
[406801229,1772203857060,-500.0,0.00037099,120]
[406801230,1772203857070,-4068.84,0.000371,14]
[406801231,1772203857079,-2382.62,0.000371,14]
[406801232,1772203857089,-198774.0,0.000371,20]
[406801233,1772203857099,-151.0,0.000371,31]
[406801234,1772203857108,-151.0,0.000371,31]
[406801235,1772203857118,-151.0,0.000371,31]
[406801236,1772203857127,-282.99727,0.000371,31]
[406801237,1772203857136,-282.99727,0.000371,31]
[406801238,1772203857146,-282.99727,0.000371,31]
[406801239,1772203857155,-282.997279,0.000371,31]
[406801240,1772203857175,-151.0,0.000371,31]
[406801241,1772203857185,-151.0,0.000371,31]
[406801242,1772203857194,-151.0,0.000371,31]
[406801243,1772203857203,-1041.0,0.00037145,2]
[406801244,1772203857214,-618.0,0.00037145,2]
[406801245,1772203857224,-1340.0,0.00037145,2]
[406801246,1772203857233,-1277.0,0.00037145,2]
[406801247,1772203857242,-1211.0,0.00037145,2]
[406801248,1772203857251,-921.0,0.00037145,2]
[406801249,1772203857260,-5983.0,0.00037145,2]
[406801250,1772203857270,-2456.0,0.00037145,2]
[406801251,1772203857279,-350.0,0.00037152,4]
[406801252,1772203857288,-151.25687105,0.000372,120]
[406801253,1772203857298,-150.51,0.0003726,120]
[406801254,1772203857307,-455.69291,0.00037288,30]
[406801255,1772203857315,-629.72394849,0.00037299,5]
[406801256,1772203857324,-724.71,0.000373,14]
[406801257,1772203857453,-200.0,0.00037372,5]
[406801258,1772203857462,-455.69291,0.00037488,30]
[406801259,1772203857471,-4354.65613182,0.0003759,2]
[406801260,1772203857483,-1040.2,0.00037594,7]
[406801261,1772203857493,-455.69291,0.00037688,30]
[406801262,1772203857503,-500.0,0.00037836,5]
[406801263,1772203857513,-203.16523887,0.0003788,2]
[406801264,1772203857522,-455.69291,0.00037888,30]
[406801265,1772203857532,-180.5,0.00037957,7]
[406801266,1772203857542,-350.0,0.00037971,5]
[406801267,1772203857551,-308.0,0.00037984,120]
[406801268,1772203857560,-1247.11859078,0.00037993,30]
[406801269,1772203857569,-526.0,0.00038,5]
[406801270,1772203857579,-1063.16,0.00038034,30]
[406801271,1772203857588,-500.0,0.00038058,120]
[406801272,1772203857598,-250.27,0.00038064,90]
[406801273,1772203857607,-171.0,0.0003808,120]
[406801274,1772203857616,-171.0,0.00038084,120]
[406801275,1772203857625,-455.69291,0.00038088,30]
[406801276,1772203857635,-174.00015664,0.000381,10]
[406801277,1772203857644,-160.0,0.000381,120]